[Event "Titled Tuesday Blitz March 07 Late 2023"]
[White "Chan, Kim Yew"]
[Black "Carbone, Diego"]
[WhiteFideId "5717981"]
[BlackFideId "3002179"]
[WhiteElo "2206"]
[BlackElo "2266"]
[Result "1/2-1/2"]
[Round "06"]
[TimeControl "180+2"]
[Date "2023.03.07"]
[WhiteClock "0:00:08"]
[BlackClock "0:00:06"]

1. e4 {[%clk 0:03:00]}  e5 {[%clk 0:02:59]} 2. Nf3 {[%clk 0:03:00]}  Nc6 {[%clk 0:02:59]} 3. Bb5 {[%clk 0:02:56]}  a6 {[%clk 0:02:57]} 4. Ba4 {[%clk 0:02:55]}  Nf6 {[%clk 0:02:57]} 5. O-O {[%clk 0:02:55]}  Nxe4 {[%clk 0:02:57]} 6. d4 {[%clk 0:02:54]}  Be7 {[%clk 0:02:57]} 7. Re1 {[%clk 0:02:30]}  b5 {[%clk 0:02:55]} 8. Rxe4 {[%clk 0:02:17]}  d5 {[%clk 0:02:54]} 9. Re1 {[%clk 0:02:08]}  e4 {[%clk 0:02:54]} 10. Bb3 {[%clk 0:02:01]}  exf3 {[%clk 0:02:54]} 11. Qxf3 {[%clk 0:02:02]}  Nxd4 {[%clk 0:02:54]} 12. Qxd5 {[%clk 0:01:55]}  Qxd5 {[%clk 0:02:54]} 13. Bxd5 {[%clk 0:01:56]}  Nxc2 {[%clk 0:02:53]} 14. Re2 {[%clk 0:01:28]}  Nxa1 {[%clk 0:02:46]} 15. Bxa8 {[%clk 0:01:26]}  Be6 {[%clk 0:01:58]} 16. Bc6+ {[%clk 0:01:21]}  Kd8 {[%clk 0:01:57]} 17. Nc3 {[%clk 0:01:18]}  b4 {[%clk 0:01:52]} 18. Nd5 {[%clk 0:01:18]}  Bd6 {[%clk 0:01:44]} 19. b3 {[%clk 0:01:16]}  Bf5 {[%clk 0:01:36]} 20. Ne3 {[%clk 0:01:14]}  Be6 {[%clk 0:00:36]} 21. Bb2 {[%clk 0:01:14]}  Nxb3 {[%clk 0:00:35]} 22. axb3 {[%clk 0:01:14]}  Bxb3 {[%clk 0:00:36]} 23. Bxg7 {[%clk 0:01:14]}  Rg8 {[%clk 0:00:31]} 24. Bf6+ {[%clk 0:01:11]}  Kc8 {[%clk 0:00:32]} 25. Nf5 {[%clk 0:01:04]}  Be6 {[%clk 0:00:30]} 26. Nd4 {[%clk 0:01:02]}  Bd7 {[%clk 0:00:28]} 27. Bd5 {[%clk 0:01:00]}  a5 {[%clk 0:00:25]} 28. Be7 {[%clk 0:00:59]}  Bxe7 {[%clk 0:00:21]} 29. Rxe7 {[%clk 0:00:59]}  Re8 {[%clk 0:00:22]} 30. Rxe8+ {[%clk 0:00:35]}  Bxe8 {[%clk 0:00:23]} 31. Kf1 {[%clk 0:00:29]}  a4 {[%clk 0:00:21]} 32. Ke2 {[%clk 0:00:28]}  c5 {[%clk 0:00:21]} 33. Nf5 {[%clk 0:00:28]}  Kc7 {[%clk 0:00:19]} 34. Kd2 {[%clk 0:00:28]}  Bc6 {[%clk 0:00:16]} 35. Bxf7 {[%clk 0:00:26]}  Bxg2 {[%clk 0:00:17]} 36. f4 {[%clk 0:00:25]}  a3 {[%clk 0:00:15]} 37. Ne3 {[%clk 0:00:25]}  Bh3 {[%clk 0:00:15]} 38. Bc4 {[%clk 0:00:25]}  Kd6 {[%clk 0:00:13]} 39. Kc2 {[%clk 0:00:24]}  Be6 {[%clk 0:00:13]} 40. Kb3 {[%clk 0:00:22]}  Bxc4+ {[%clk 0:00:10]} 41. Nxc4+ {[%clk 0:00:23]}  Ke6 {[%clk 0:00:11]} 42. Ne3 {[%clk 0:00:21]}  h5 {[%clk 0:00:12]} 43. h4 {[%clk 0:00:19]}  c4+ {[%clk 0:00:10]} 44. Nxc4 {[%clk 0:00:16]}  Kf5 {[%clk 0:00:10]} 45. Nb6 {[%clk 0:00:06]}  Kxf4 {[%clk 0:00:08]} 46. Nd5+ {[%clk 0:00:06]}  Kg3 {[%clk 0:00:08]} 47. Nxb4 {[%clk 0:00:07]}  Kxh4 {[%clk 0:00:05]} 48. Nc2 {[%clk 0:00:08]}  Kg3 {[%clk 0:00:06]} 49. Ne3 {[%clk 0:00:08]}  h4 {[%clk 0:00:05]} 50. Nf5+ {[%clk 0:00:08]}  Kg4 {[%clk 0:00:05]} 51. Nxh4 {[%clk 0:00:08]}  Kxh4 {[%clk 0:00:06]} 52. Kxa3 {[%clk 0:00:08]} 1/2-1/2


[Site "https://www.chess.com"]

[Event "Titled Tuesday Blitz March 07 Late 2023"]
[White "Moral Garcia, Serafin"]
[Black "Dodaro, Mattia"]
[WhiteFideId "2201925"]
[BlackFideId "28583400"]
[WhiteElo "2254"]
[BlackElo "2405"]
[Result "0-1"]
[Round "06"]
[TimeControl "180+2"]
[Date "2023.03.07"]
[WhiteClock "0:01:08"]
[BlackClock "0:00:55"]

1. c4 {[%clk 0:03:00]}  a6 {[%clk 0:02:52]} 2. Nc3 {[%clk 0:02:58]}  Nf6 {[%clk 0:02:52]} 3. g3 {[%clk 0:02:56]}  g6 {[%clk 0:02:50]} 4. Bg2 {[%clk 0:02:55]}  Bg7 {[%clk 0:02:51]} 5. d3 {[%clk 0:02:54]}  O-O {[%clk 0:02:50]} 6. Rb1 {[%clk 0:02:53]}  d6 {[%clk 0:02:49]} 7. b4 {[%clk 0:02:49]}  c6 {[%clk 0:02:44]} 8. a4 {[%clk 0:02:46]}  Nbd7 {[%clk 0:02:35]} 9. e3 {[%clk 0:02:39]}  Rb8 {[%clk 0:02:27]} 10. b5 {[%clk 0:02:36]}  axb5 {[%clk 0:02:20]} 11. axb5 {[%clk 0:02:35]}  cxb5 {[%clk 0:02:04]} 12. Nxb5 {[%clk 0:02:33]}  Nc5 {[%clk 0:02:03]} 13. Ne2 {[%clk 0:02:28]}  Bd7 {[%clk 0:02:02]} 14. O-O {[%clk 0:02:21]}  Bc6 {[%clk 0:02:02]} 15. Nec3 {[%clk 0:01:59]}  Nfd7 {[%clk 0:01:47]} 16. d4 {[%clk 0:01:57]}  Bxg2 {[%clk 0:01:44]} 17. Kxg2 {[%clk 0:01:56]}  Ne6 {[%clk 0:01:41]} 18. Bd2 {[%clk 0:01:44]}  Qc8 {[%clk 0:01:41]} 19. Nd5 {[%clk 0:01:39]}  Re8 {[%clk 0:01:23]} 20. Qa4 {[%clk 0:01:35]}  Ra8 {[%clk 0:01:16]} 21. Qb3 {[%clk 0:01:31]}  Ra6 {[%clk 0:01:05]} 22. Ra1 {[%clk 0:01:18]}  Ndc5 {[%clk 0:00:56]} 23. Rxa6 {[%clk 0:01:13]}  Nxb3 {[%clk 0:00:55]} 24. Ra2 {[%clk 0:01:08]}  Nxd2 {[%clk 0:00:54]} 25. Rxd2 {[%clk 0:01:08]}  Qxc4 {[%clk 0:00:55]} 0-1


[Site "https://www.chess.com"]

[Event "Titled Tuesday Blitz March 07 Late 2023"]
[White "Liu, Eric"]
[Black "Rostomyan, Mikayel"]
[WhiteFideId "30960240"]
[BlackFideId "13313754"]
[WhiteElo "2094"]
[BlackElo "2009"]
[Result "0-1"]
[Round "06"]
[TimeControl "180+2"]
[Date "2023.03.07"]
[WhiteClock "0:01:46"]
[BlackClock "0:00:31"]

1. d4 {[%clk 0:02:49]}  Nf6 {[%clk 0:02:59]} 2. h4 {[%clk 0:02:46]}  d5 {[%clk 0:02:56]} 3. a4 {[%clk 0:02:47]}  c5 {[%clk 0:02:56]} 4. e3 {[%clk 0:02:47]}  Nc6 {[%clk 0:02:54]} 5. Nf3 {[%clk 0:02:47]}  cxd4 {[%clk 0:02:54]} 6. exd4 {[%clk 0:02:47]}  Bg4 {[%clk 0:02:53]} 7. Be2 {[%clk 0:02:47]}  e6 {[%clk 0:02:52]} 8. c3 {[%clk 0:02:48]}  Bd6 {[%clk 0:02:47]} 9. Ne5 {[%clk 0:02:48]}  Bxe2 {[%clk 0:02:23]} 10. Qxe2 {[%clk 0:02:49]}  Bxe5 {[%clk 0:02:21]} 11. dxe5 {[%clk 0:02:50]}  Ne4 {[%clk 0:02:22]} 12. Nd2 {[%clk 0:02:44]}  Nxd2 {[%clk 0:02:10]} 13. Bxd2 {[%clk 0:02:45]}  Qc7 {[%clk 0:02:03]} 14. Bf4 {[%clk 0:02:44]}  d4 {[%clk 0:01:57]} 15. cxd4 {[%clk 0:02:30]}  Nxd4 {[%clk 0:01:51]} 16. Qd3 {[%clk 0:02:28]}  Nc2+ {[%clk 0:01:47]} 17. Ke2 {[%clk 0:02:27]}  Nxa1 {[%clk 0:01:47]} 18. Rxa1 {[%clk 0:02:28]}  Rd8 {[%clk 0:01:45]} 19. Qg3 {[%clk 0:02:26]}  Qc2+ {[%clk 0:01:28]} 20. Ke1 {[%clk 0:02:26]}  O-O {[%clk 0:01:21]} 21. Rc1 {[%clk 0:02:15]}  Qe4+ {[%clk 0:01:09]} 22. Kf1 {[%clk 0:02:14]}  Rc8 {[%clk 0:01:02]} 23. Re1 {[%clk 0:02:12]}  Qg6 {[%clk 0:00:56]} 24. Qf3 {[%clk 0:02:10]}  b6 {[%clk 0:00:52]} 25. h5 {[%clk 0:02:10]}  Qf5 {[%clk 0:00:50]} 26. g4 {[%clk 0:02:03]}  Qc2 {[%clk 0:00:48]} 27. h6 {[%clk 0:02:02]}  Qc6 {[%clk 0:00:37]} 28. Qh3 {[%clk 0:01:55]}  Qc4+ {[%clk 0:00:37]} 29. Kg1 {[%clk 0:01:51]}  Qxf4 {[%clk 0:00:37]} 30. hxg7 {[%clk 0:01:52]}  Kxg7 {[%clk 0:00:36]} 31. Re3 {[%clk 0:01:51]}  Rc4 {[%clk 0:00:34]} 32. Rg3 {[%clk 0:01:50]}  Rd8 {[%clk 0:00:31]} 33. g5 {[%clk 0:01:50]}  Rd1+ {[%clk 0:00:30]} 34. Kg2 {[%clk 0:01:49]}  Qe4+ {[%clk 0:00:30]} 35. Rf3 {[%clk 0:01:46]}  Qg4+ {[%clk 0:00:30]} 36. Qxg4 {[%clk 0:01:46]}  Rxg4+ {[%clk 0:00:31]} 0-1


[Site "https://www.chess.com"]

[Event "Titled Tuesday Blitz March 07 Late 2023"]
[White "Topalov, Aleksandar"]
[Black "Ashraf, Artin"]
[WhiteFideId "925659"]
[BlackFideId "22514805"]
[WhiteElo "2151"]
[BlackElo "2188"]
[Result "0-1"]
[Round "06"]
[TimeControl "180+2"]
[Date "2023.03.07"]
[WhiteClock "0:01:37"]
[BlackClock "0:01:40"]

1. b3 {[%clk 0:03:00]}  d5 {[%clk 0:02:59]} 2. Bb2 {[%clk 0:03:00]}  Nc6 {[%clk 0:02:59]} 3. e3 {[%clk 0:02:59]}  e5 {[%clk 0:03:00]} 4. Bb5 {[%clk 0:02:59]}  Ne7 {[%clk 0:03:00]} 5. Bxe5 {[%clk 0:02:57]}  a6 {[%clk 0:03:00]} 6. Bxc6+ {[%clk 0:02:57]}  Nxc6 {[%clk 0:03:01]} 7. Bg3 {[%clk 0:02:55]}  h5 {[%clk 0:02:57]} 8. h3 {[%clk 0:02:51]}  h4 {[%clk 0:02:39]} 9. Bh2 {[%clk 0:02:50]}  Qg5 {[%clk 0:02:39]} 10. Kf1 {[%clk 0:02:45]}  Qg6 {[%clk 0:02:22]} 11. Bxc7 {[%clk 0:02:35]}  Nb4 {[%clk 0:02:14]} 12. d3 {[%clk 0:02:35]}  Qc6 {[%clk 0:02:13]} 13. c3 {[%clk 0:02:13]}  Qxc7 {[%clk 0:02:03]} 14. cxb4 {[%clk 0:02:13]}  Bxb4 {[%clk 0:02:04]} 15. a3 {[%clk 0:02:10]}  Bd6 {[%clk 0:02:02]} 16. Nf3 {[%clk 0:02:02]}  Bf5 {[%clk 0:01:59]} 17. Ra2 {[%clk 0:01:49]}  Rc8 {[%clk 0:01:55]} 18. Ke2 {[%clk 0:01:43]}  Bg6 {[%clk 0:01:47]} 19. Nd4 {[%clk 0:01:43]}  O-O {[%clk 0:01:41]} 20. Rc2 {[%clk 0:01:43]}  Bh5+ {[%clk 0:01:41]} 21. f3 {[%clk 0:01:41]}  Qe7 {[%clk 0:01:41]} 22. Rxc8 {[%clk 0:01:40]}  Rxc8 {[%clk 0:01:40]} 23. Nf5 {[%clk 0:01:37]}  Qg5 {[%clk 0:01:40]} 0-1


[Site "https://www.chess.com"]

[Event "Titled Tuesday Blitz March 07 Late 2023"]
[White "Meunier-Pion, Jean"]
[Black "Sai Han Thiha"]
[WhiteFideId "20685327"]
[BlackFideId "13012290"]
[WhiteElo "2124"]
[BlackElo "1954"]
[Result "0-1"]
[Round "06"]
[TimeControl "180+2"]
[Date "2023.03.07"]
[WhiteClock "0:00:02"]
[BlackClock "0:00:05"]

1. e4 {[%clk 0:03:00]}  c6 {[%clk 0:03:00]} 2. d4 {[%clk 0:03:00]}  d5 {[%clk 0:03:00]} 3. e5 {[%clk 0:03:01]}  c5 {[%clk 0:03:01]} 4. dxc5 {[%clk 0:03:01]}  e6 {[%clk 0:03:01]} 5. a3 {[%clk 0:03:02]}  Bxc5 {[%clk 0:03:02]} 6. b4 {[%clk 0:03:02]}  Be7 {[%clk 0:03:02]} 7. Bb2 {[%clk 0:03:03]}  f6 {[%clk 0:03:01]} 8. Nf3 {[%clk 0:03:03]}  Nd7 {[%clk 0:03:02]} 9. Bd3 {[%clk 0:03:02]}  fxe5 {[%clk 0:03:02]} 10. Nxe5 {[%clk 0:03:02]}  Nxe5 {[%clk 0:03:03]} 11. Bxe5 {[%clk 0:03:02]}  Nf6 {[%clk 0:03:03]} 12. O-O {[%clk 0:03:02]}  O-O {[%clk 0:03:04]} 13. c4 {[%clk 0:03:02]}  a5 {[%clk 0:03:03]} 14. cxd5 {[%clk 0:02:55]}  Qxd5 {[%clk 0:02:59]} 15. Qe2 {[%clk 0:02:42]}  axb4 {[%clk 0:02:49]} 16. Rd1 {[%clk 0:02:42]}  Qc6 {[%clk 0:02:22]} 17. Bb5 {[%clk 0:02:23]}  Qb6 {[%clk 0:02:14]} 18. a4 {[%clk 0:02:21]}  Nd5 {[%clk 0:01:56]} 19. Nd2 {[%clk 0:01:58]}  Rxf2 {[%clk 0:01:37]} 20. Nc4 {[%clk 0:01:52]}  Rxe2+ {[%clk 0:01:23]} 21. Nxb6 {[%clk 0:01:52]}  Nxb6 {[%clk 0:01:13]} 22. Bxe2 {[%clk 0:01:50]}  Rxa4 {[%clk 0:00:52]} 23. Bd4 {[%clk 0:01:40]}  Rxa1 {[%clk 0:00:29]} 24. Rxa1 {[%clk 0:01:41]}  Bf6 {[%clk 0:00:29]} 25. Bxf6 {[%clk 0:00:53]}  gxf6 {[%clk 0:00:30]} 26. Rc1 {[%clk 0:00:47]}  Bd7 {[%clk 0:00:30]} 27. Bf3 {[%clk 0:00:44]}  b3 {[%clk 0:00:26]} 28. Rb1 {[%clk 0:00:20]}  Ba4 {[%clk 0:00:24]} 29. Bxb7 {[%clk 0:00:19]}  Nc4 {[%clk 0:00:24]} 30. Be4 {[%clk 0:00:18]}  Nd2 {[%clk 0:00:20]} 31. Re1 {[%clk 0:00:18]}  b2 {[%clk 0:00:18]} 32. Bb1 {[%clk 0:00:17]}  f5 {[%clk 0:00:16]} 33. Kf2 {[%clk 0:00:18]}  Bc6 {[%clk 0:00:11]} 34. g3 {[%clk 0:00:13]}  Be4 {[%clk 0:00:09]} 35. Bxe4 {[%clk 0:00:11]}  fxe4 {[%clk 0:00:09]} 36. Ke3 {[%clk 0:00:11]}  b1=Q {[%clk 0:00:10]} 37. Rxb1 {[%clk 0:00:12]}  Nxb1 {[%clk 0:00:10]} 38. Kxe4 {[%clk 0:00:13]}  Kf7 {[%clk 0:00:10]} 39. g4 {[%clk 0:00:08]}  Nc3+ {[%clk 0:00:09]} 40. Ke5 {[%clk 0:00:07]}  Nd5 {[%clk 0:00:10]} 41. h4 {[%clk 0:00:07]}  Ne3 {[%clk 0:00:10]} 42. g5 {[%clk 0:00:07]}  Ng4+ {[%clk 0:00:10]} 43. Kf4 {[%clk 0:00:07]}  Nf2 {[%clk 0:00:10]} 44. Kg3 {[%clk 0:00:06]}  Nd3 {[%clk 0:00:10]} 45. h5 {[%clk 0:00:05]}  Nc5 {[%clk 0:00:06]} 46. Kf4 {[%clk 0:00:05]}  Nd7 {[%clk 0:00:07]} 47. Ke4 {[%clk 0:00:05]}  Ke7 {[%clk 0:00:07]} 48. Kf4 {[%clk 0:00:05]}  Kf7 {[%clk 0:00:07]} 49. Ke4 {[%clk 0:00:05]}  Nb6 {[%clk 0:00:04]} 50. Ke5 {[%clk 0:00:05]}  Nc4+ {[%clk 0:00:04]} 51. Ke4 {[%clk 0:00:06]}  Nd6+ {[%clk 0:00:04]} 52. Ke5 {[%clk 0:00:06]}  Nf5 {[%clk 0:00:05]} 53. Kf4 {[%clk 0:00:07]}  Ng7 {[%clk 0:00:05]} 54. Kg4 {[%clk 0:00:04]}  Ke7 {[%clk 0:00:05]} 55. h6 {[%clk 0:00:02]}  Nf5 {[%clk 0:00:04]} 56. Kh5 {[%clk 0:00:02]}  Kf7 {[%clk 0:00:05]} 0-1


[Site "https://www.chess.com"]

[Event "Titled Tuesday Blitz March 07 Late 2023"]
[White "Guzman Moneo, Alberto"]
[Black "Petukhov, Dmitry"]
[WhiteFideId "2209616"]
[BlackFideId "4142748"]
[WhiteElo "2157"]
[BlackElo "2311"]
[Result "1-0"]
[Round "06"]
[TimeControl "180+2"]
[Date "2023.03.07"]
[WhiteClock "0:01:22"]
[BlackClock "0:01:01"]

1. e4 {[%clk 0:03:00]}  c5 {[%clk 0:02:49]} 2. Nc3 {[%clk 0:03:00]}  Nc6 {[%clk 0:02:49]} 3. Bb5 {[%clk 0:02:59]}  d6 {[%clk 0:02:39]} 4. f4 {[%clk 0:02:58]}  Bd7 {[%clk 0:02:36]} 5. Nf3 {[%clk 0:02:58]}  a6 {[%clk 0:02:34]} 6. Bxc6 {[%clk 0:02:58]}  Bxc6 {[%clk 0:02:31]} 7. O-O {[%clk 0:02:59]}  e6 {[%clk 0:02:24]} 8. d3 {[%clk 0:02:57]}  Nf6 {[%clk 0:02:21]} 9. Qe1 {[%clk 0:02:57]}  Be7 {[%clk 0:02:16]} 10. Qg3 {[%clk 0:02:57]}  O-O {[%clk 0:02:16]} 11. f5 {[%clk 0:02:57]}  exf5 {[%clk 0:02:10]} 12. exf5 {[%clk 0:02:56]}  d5 {[%clk 0:01:59]} 13. Bh6 {[%clk 0:02:48]}  Nh5 {[%clk 0:01:55]} 14. Qg4 {[%clk 0:02:45]}  Qd6 {[%clk 0:01:55]} 15. Qxh5 {[%clk 0:02:25]}  Qxh6 {[%clk 0:01:55]} 16. Qxh6 {[%clk 0:02:25]}  gxh6 {[%clk 0:01:55]} 17. Ne5 {[%clk 0:02:22]}  Bf6 {[%clk 0:01:46]} 18. Rfe1 {[%clk 0:02:12]}  d4 {[%clk 0:01:40]} 19. Nxc6 {[%clk 0:01:56]}  dxc3 {[%clk 0:01:36]} 20. Ne7+ {[%clk 0:01:51]}  Kg7 {[%clk 0:01:37]} 21. b3 {[%clk 0:01:36]}  Rad8 {[%clk 0:01:20]} 22. Re4 {[%clk 0:01:32]}  Rd7 {[%clk 0:01:15]} 23. Rae1 {[%clk 0:01:30]}  Rfd8 {[%clk 0:01:03]} 24. Rg4+ {[%clk 0:01:22]}  Kf8 {[%clk 0:01:01]} 25. Rg8# {[%clk 0:01:22]} 1-0


[Site "https://www.chess.com"]

[Event "Titled Tuesday Blitz March 07 Late 2023"]
[White "ArtemDyachuk"]
[Black "Averjanov, Alexey"]
[BlackFideId "14109867"]
[WhiteElo "2389"]
[BlackElo "2584"]
[Result "0-1"]
[Round "06"]
[TimeControl "180+2"]
[Date "2023.03.07"]
[WhiteClock "0:00:13"]
[BlackClock "0:00:41"]

1. d4 {[%clk 0:02:58]}  d5 {[%clk 0:02:59]} 2. Nf3 {[%clk 0:02:57]}  Nf6 {[%clk 0:02:59]} 3. c4 {[%clk 0:02:58]}  dxc4 {[%clk 0:02:59]} 4. Nc3 {[%clk 0:02:59]}  a6 {[%clk 0:02:59]} 5. a4 {[%clk 0:02:58]}  Nc6 {[%clk 0:02:58]} 6. e3 {[%clk 0:02:58]}  Na5 {[%clk 0:02:58]} 7. Ne5 {[%clk 0:02:57]}  Be6 {[%clk 0:02:58]} 8. f4 {[%clk 0:02:52]}  g6 {[%clk 0:02:57]} 9. g3 {[%clk 0:02:52]}  c5 {[%clk 0:02:54]} 10. Bg2 {[%clk 0:02:48]}  cxd4 {[%clk 0:02:48]} 11. exd4 {[%clk 0:02:49]}  Qc7 {[%clk 0:02:31]} 12. O-O {[%clk 0:02:46]}  Rd8 {[%clk 0:02:25]} 13. d5 {[%clk 0:02:44]}  Nxd5 {[%clk 0:02:09]} 14. Qe1 {[%clk 0:01:12]}  Nb4 {[%clk 0:01:45]} 15. Rb1 {[%clk 0:00:50]}  Bg7 {[%clk 0:01:40]} 16. Qf2 {[%clk 0:00:42]}  O-O {[%clk 0:01:34]} 17. Be3 {[%clk 0:00:37]}  Nd3 {[%clk 0:01:02]} 18. Bb6 {[%clk 0:00:28]}  Qb8 {[%clk 0:00:53]} 19. Qe3 {[%clk 0:00:17]}  Nxe5 {[%clk 0:00:41]} 20. fxe5 {[%clk 0:00:13]}  Rd3 {[%clk 0:00:41]} 0-1


[Site "https://www.chess.com"]

[Event "Titled Tuesday Blitz March 07 Late 2023"]
[White "Poliakova, Varvara"]
[Black "Senft, Sean"]
[WhiteFideId "13518313"]
[BlackFideId "2044960"]
[WhiteElo "2075"]
[BlackElo "1989"]
[Result "1-0"]
[Round "06"]
[TimeControl "180+2"]
[Date "2023.03.07"]
[WhiteClock "0:01:05"]
[BlackClock "0:00:04"]

1. e4 {[%clk 0:02:57]}  e5 {[%clk 0:02:53]} 2. Nf3 {[%clk 0:02:55]}  Nc6 {[%clk 0:02:52]} 3. d4 {[%clk 0:02:56]}  exd4 {[%clk 0:02:49]} 4. Bc4 {[%clk 0:02:53]}  Nf6 {[%clk 0:02:38]} 5. O-O {[%clk 0:02:50]}  d6 {[%clk 0:02:34]} 6. Nxd4 {[%clk 0:02:47]}  Be7 {[%clk 0:02:31]} 7. Nc3 {[%clk 0:02:43]}  O-O {[%clk 0:02:31]} 8. Re1 {[%clk 0:02:36]}  Nd7 {[%clk 0:02:23]} 9. Be3 {[%clk 0:02:20]}  Bf6 {[%clk 0:02:22]} 10. Nd5 {[%clk 0:02:17]}  Nde5 {[%clk 0:02:20]} 11. Be2 {[%clk 0:02:15]}  Kh8 {[%clk 0:02:04]} 12. f4 {[%clk 0:02:10]}  Nxd4 {[%clk 0:01:58]} 13. Bxd4 {[%clk 0:02:08]}  Nc6 {[%clk 0:01:56]} 14. Bxf6 {[%clk 0:02:05]}  gxf6 {[%clk 0:01:55]} 15. Qd3 {[%clk 0:02:04]}  Be6 {[%clk 0:01:52]} 16. Qc3 {[%clk 0:02:01]}  Bxd5 {[%clk 0:01:52]} 17. exd5 {[%clk 0:02:02]}  Nb8 {[%clk 0:01:51]} 18. Bd3 {[%clk 0:01:54]}  Nd7 {[%clk 0:01:48]} 19. Re3 {[%clk 0:01:54]}  Rg8 {[%clk 0:01:36]} 20. Rh3 {[%clk 0:01:53]}  Rg7 {[%clk 0:01:36]} 21. Re1 {[%clk 0:01:49]}  Qg8 {[%clk 0:01:32]} 22. Be4 {[%clk 0:01:42]}  Re8 {[%clk 0:01:26]} 23. Rhe3 {[%clk 0:01:37]}  Nb6 {[%clk 0:00:59]} 24. Qxf6 {[%clk 0:01:34]}  Nd7 {[%clk 0:00:47]} 25. Qc3 {[%clk 0:01:34]}  f6 {[%clk 0:00:19]} 26. Bf3 {[%clk 0:01:27]}  Rxe3 {[%clk 0:00:16]} 27. Qxe3 {[%clk 0:01:28]}  Rf7 {[%clk 0:00:12]} 28. Qe8 {[%clk 0:01:27]}  Kg7 {[%clk 0:00:12]} 29. Qe6 {[%clk 0:01:24]}  Nc5 {[%clk 0:00:10]} 30. Qg4+ {[%clk 0:01:20]}  Kh8 {[%clk 0:00:11]} 31. Qxg8+ {[%clk 0:01:19]}  Kxg8 {[%clk 0:00:11]} 32. Bh5 {[%clk 0:01:16]}  Rf8 {[%clk 0:00:07]} 33. Re7 {[%clk 0:01:14]}  Rc8 {[%clk 0:00:06]} 34. b4 {[%clk 0:01:12]}  Na4 {[%clk 0:00:06]} 35. Bg4 {[%clk 0:01:10]}  Rb8 {[%clk 0:00:04]} 36. Rxc7 {[%clk 0:01:08]}  b5 {[%clk 0:00:04]} 37. Be6+ {[%clk 0:01:08]}  Kf8 {[%clk 0:00:05]} 38. Rxa7 {[%clk 0:01:08]}  Nc3 {[%clk 0:00:04]} 39. Rxh7 {[%clk 0:01:08]}  Rd8 {[%clk 0:00:04]} 40. h4 {[%clk 0:01:05]}  Nxa2 {[%clk 0:00:04]} 41. h5 {[%clk 0:01:05]}  Nxb4 {[%clk 0:00:05]} 42. h6 {[%clk 0:01:06]}  Nxc2 {[%clk 0:00:02]} 43. Rh8+ {[%clk 0:01:05]}  Ke7 {[%clk 0:00:03]} 44. Rxd8 {[%clk 0:01:05]}  Kxd8 {[%clk 0:00:04]} 45. h7 {[%clk 0:01:05]} 1-0


[Site "https://www.chess.com"]